bitfinex-derivatives/quotes_SOLF0:USTF0_20260204
["timestamp","ask_amount","ask_price","bid_price","bid_amount"]
[1770194562372,8.29636313,97.266,97.23,3.38522178]
[1770194565470,112.22,97.301,97.212,200.32]
[1770194565471,8.39691162,97.292,97.25,3.38522178]
[1770194565675,8.39691162,97.292,97.26,3.38522178]
[1770194567867,8.40394357,97.289,97.23,3.38522178]
[1770194568373,8.40394357,97.287,97.23,3.38522178]
[1770194568764,8.40394357,97.285,97.23,3.38522178]
[1770194569370,8.4163713,97.282,97.23,3.38522178]
[1770194575478,8.4163713,97.282,97.232,9.2678]
[1770194575774,8.4163713,97.282,97.24,3.38522178]
[1770194580478,8.4163713,97.282,97.232,9.2678]
[1770194581880,8.4163713,97.282,97.24,3.38522178]
[1770194583780,8.38823602,97.293,97.26,3.38522178]
[1770194584282,8.38823602,97.293,97.27,3.38522178]
[1770194585481,8.38823602,97.293,97.241,227.84]
[1770194585482,8.38823602,97.293,97.25,3.38522178]
[1770194586679,8.38823602,97.293,97.241,227.84]
[1770194587278,8.38315962,97.291,97.241,227.84]
[1770194587486,8.38315962,97.289,97.23,3.38522178]
[1770194587782,8.38315962,97.289,97.24,3.38522178]
[1770194587983,8.38315962,97.289,97.25,3.38522178]
[1770194589481,8.38315962,97.289,97.244,9.2665]
[1770194589482,8.38315962,97.289,97.26,3.38522178]
[1770194590686,109.44,97.331,97.228,228.62]
[1770194590687,8.38360235,97.318,97.27,3.38522178]
[1770194590981,8.38360235,97.316,97.27,3.38522178]
[1770194591174,8.39280067,97.314,97.27,3.38522178]
[1770194591376,8.39280067,97.312,97.26,3.38522178]
[1770194591886,8.39280067,97.312,97.27,3.38522178]
[1770194592185,8.39280067,97.312,97.26,3.38522178]
[1770194592377,8.39280067,97.312,97.27,3.38522178]
[1770194594485,144.0034,97.342,97.248,191.78]
[1770194594486,8.38258909,97.324,97.29,3.38522178]
[1770194599188,8.38258909,97.324,97.28,3.38522178]
[1770194600996,8.3699541,97.312,97.26,3.38522178]
[1770194601397,8.3699541,97.309,97.25,3.38522178]
[1770194601594,8.3699541,97.309,97.26,3.38522178]
[1770194602195,8.3699541,97.309,97.25,3.38522178]
[1770194602500,8.3699541,97.299,97.24,3.38522178]
[1770194603795,8.42037892,97.286,97.24,3.38522178]
[1770194606191,17.68307892,97.286,97.24,3.38522178]
[1770194606390,8.43133183,97.285,97.24,3.38522178]
[1770194608691,8.44309012,97.283,97.24,3.38522178]
[1770194609699,8.44309012,97.283,97.25,3.38522178]
[1770194610503,8.42409769,97.28,97.23,3.38522178]
[1770194611793,8.42270619,97.268,97.23,3.38522178]
[1770194612800,8.42270619,97.285,97.24,3.38522178]
[1770194612999,8.42270619,97.285,97.25,3.38522178]
[1770194618107,8.42270619,97.285,97.23,3.38522178]
[1770194620601,8.42270619,97.285,97.226,9.2683]
[1770194620602,8.42270619,97.285,97.24,3.38522178]
[1770194622500,8.49228384,97.298,97.25,3.3843155]
[1770194631210,8.46539406,97.297,97.25,3.3843155]
[1770194631513,8.46539406,97.297,97.241,9.2669]
[1770194631909,8.46539406,97.294,97.24,3.3843155]
[1770194632714,9.262,97.293,97.24,3.3843155]
[1770194632913,8.46539406,97.292,97.24,3.3843155]
[1770194633705,9.2622,97.291,97.24,3.3843155]
[1770194633911,8.44695434,97.29,97.24,3.3843155]
[1770194634317,8.44695434,97.29,97.25,3.3843155]
[1770194636216,8.45006496,97.302,97.26,3.3843155]
[1770194636819,8.44735792,97.299,97.26,3.3843155]
[1770194637014,8.44735792,97.299,97.25,3.3843155]
[1770194638915,8.44735792,97.299,97.26,3.3843155]
[1770194640015,9.2604,97.31,97.221,219.66]
[1770194640016,8.44893723,97.311,97.27,3.3843155]
[1770194640209,8.44893723,97.311,97.28,3.3843155]
[1770194640410,8.44893723,97.311,97.235,144.1607]
[1770194640411,106.26,97.364,97.3,3.3843155]
[1770194640617,3.3843155,97.36,97.3,3.3843155]
[1770194641320,9.2564,97.352,97.3,3.3843155]
[1770194641516,3.3843155,97.34,97.28,3.3843155]
[1770194642409,8.25716186,97.339,97.28,3.3843155]
[1770194642611,8.25716186,97.357,97.31,3.3843155]
[1770194642810,8.25716186,97.357,97.272,144.1064]
[1770194642811,8.25716186,97.357,97.32,3.3843155]
[1770194643522,8.25716186,97.357,97.31,3.3843155]
[1770194643820,8.25716186,97.357,97.3,3.3843155]
[1770194644522,8.25869499,97.352,97.3,3.3843155]
[1770194644922,8.25869499,97.349,97.29,3.3843155]
[1770194645521,8.20226604,97.339,97.28,3.3843155]
[1770194646819,3.3843155,97.34,97.28,3.3843155]
[1770194646820,8.20226604,97.327,97.28,3.3843155]
[1770194648824,8.20226604,97.327,97.29,3.3843155]
[1770194649925,8.20226604,97.327,97.28,3.3843155]
[1770194650724,8.04460724,97.325,97.28,3.3843155]
[1770194654125,8.04460724,97.325,97.29,3.3843155]
[1770194655930,8.04460724,97.325,97.28,3.3843155]
[1770194656431,8.08261365,97.338,97.3,3.3843155]
[1770194656627,143.9309,97.391,97.26,144.1233]
[1770194656628,8.08261365,97.369,97.32,3.3843155]
[1770194657228,8.08564043,97.355,97.32,3.3843155]
[1770194657435,8.08564043,97.355,97.3,3.3843155]
[1770194657832,8.08564043,97.349,97.29,3.3843155]
[1770194658833,8.08564043,97.345,97.29,3.3843155]
[1770194659426,8.08143061,97.339,97.28,221.4843155]
[1770194660330,8.08143061,97.339,97.29,3.3843155]
[1770194660734,9.2577,97.338,97.28,221.4843155]
[1770194660935,8.08401216,97.337,97.28,221.4843155]
[1770194661740,8.08401216,97.332,97.28,221.4843155]
[1770194662835,8.08401216,97.33,97.28,221.4843155]
[1770194663234,8.08401216,97.33,97.29,3.3843155]
[1770194663635,8.08721253,97.342,97.31,3.3843155]
[1770194666035,8.08721253,97.342,97.3,3.3843155]
[1770194671845,8.04316932,97.34,97.29,3.3843155]
[1770194672046,8.04316932,97.339,97.28,12.6475155]
[1770194672244,8.04316932,97.329,97.28,3.3843155]
[1770194674548,8.04316932,97.329,97.29,3.3843155]
[1770194679741,8.04316932,97.329,97.28,3.3843155]
[1770194680643,8.04316932,97.329,97.29,3.3843155]
[1770194680853,7.84614289,97.342,97.3,3.3843155]
[1770194681149,7.84614289,97.342,97.31,3.3843155]
[1770194681851,7.84614289,97.342,97.281,232.64]
[1770194681852,7.84614289,97.342,97.32,3.3843155]
[1770194682349,7.84614289,97.342,97.32,3.37937031]
[1770194682952,7.84614289,97.342,97.3,3.37937031]
[1770194683341,7.84614289,97.342,97.292,9.262]
[1770194683547,7.88730817,97.339,97.28,3.37937031]
[1770194684951,7.88730817,97.336,97.28,3.37937031]
[1770194685753,7.90634039,97.333,97.28,3.37937031]
[1770194691552,7.92614018,97.345,97.31,3.37937031]
[1770194692448,7.92614018,97.345,97.3,3.37937031]
[1770194693060,7.92614018,97.345,97.281,231.36]
[1770194693061,7.92614018,97.345,97.31,3.37937031]
[1770194693652,7.92614018,97.345,97.3,3.37937031]
[1770194694962,7.92614018,97.345,97.292,9.262]
[1770194695253,7.92614018,97.345,97.3,3.37937031]
[1770194698562,7.90928415,97.378,97.31,3.37937031]
[1770194698758,3.37937031,97.37,97.31,3.37937031]
[1770194698959,7.90928415,97.369,97.31,3.37937031]
[1770194699159,7.90928415,97.367,97.32,3.37937031]
[1770194701757,143.9193,97.399,97.292,229.8]
[1770194701758,7.98265715,97.381,97.33,3.37937031]
[1770194701955,7.98265715,97.381,97.34,3.37937031]
[1770194702156,7.98265715,97.381,97.33,3.37937031]
[1770194702353,7.98265715,97.379,97.32,3.37937031]
[1770194702764,9.2545,97.372,97.32,3.37937031]
[1770194702967,7.98265715,97.369,97.31,3.37937031]
[1770194703167,7.9483292,97.359,97.3,3.37937031]
[1770194703670,7.9483292,97.346,97.279,9.2633]
[1770194703860,7.9483292,97.346,97.29,3.37937031]
[1770194704770,7.9483292,97.344,97.29,3.37937031]
[1770194705170,7.9483292,97.344,97.28,3.37937031]
[1770194705468,8.14107836,97.329,97.27,3.37937031]
[1770194706066,8.14107836,97.329,97.28,3.37937031]
[1770194706866,8.14107836,97.329,97.29,3.37937031]
[1770194708773,8.14107836,97.329,97.27,3.37937031]
[1770194709775,8.14107836,97.329,97.272,9.264]
[1770194711373,8.14107836,97.329,97.28,3.37937031]
[1770194712169,8.07319707,97.322,97.267,9.2644]
[1770194712374,8.07319707,97.322,97.28,3.37937031]
[1770194716481,8.07319707,97.322,97.29,3.37937031]
[1770194717277,8.07319707,97.322,97.28,3.37937031]
[1770194719082,8.13022844,97.349,97.3,3.37937031]
[1770194720581,8.13022844,97.349,97.31,3.37937031]
[1770194720989,8.13022844,97.349,97.279,230.96]
[1770194721189,8.13022844,97.349,97.3,3.37937031]
[1770194724085,8.13022844,97.349,97.31,3.37937031]
[1770194725186,8.07631111,97.363,97.33,3.37937031]
[1770194727289,8.07631111,97.363,97.32,3.37937031]
[1770194728786,8.07631111,97.363,97.33,3.37937031]
[1770194731689,8.07631111,97.363,97.31,3.37937031]
[1770194731892,8.07631111,97.363,97.303,229.86]
[1770194732090,8.07631111,97.363,97.31,3.37937031]
[1770194733797,8.04925286,97.361,97.31,3.37937031]
[1770194734595,3.37937031,97.37,97.31,3.37937031]
[1770194734596,8.04925286,97.358,97.31,3.37937031]
[1770194735895,8.05009589,97.355,97.31,3.37937031]
[1770194736397,8.05009589,97.355,97.32,3.37937031]
[1770194736593,8.05009589,97.355,97.31,3.37937031]
[1770194738498,8.05626221,97.352,97.303,229.86]
[1770194738999,8.05626221,97.352,97.268,144.1126]
[1770194739000,8.05626221,97.352,97.31,3.37937031]
[1770194742403,8.03259357,97.351,97.31,3.37937031]
[1770194744503,8.03259357,97.351,97.31,3.38003366]
[1770194745409,9.2556,97.361,97.32,3.38003366]
[1770194745605,17.2653892,97.361,97.32,3.38003366]
[1770194745806,8.0097892,97.36,97.32,3.38003366]
[1770194748109,8.0097892,97.36,97.305,9.2608]
[1770194748110,8.0097892,97.36,97.33,3.38003366]
[1770194748710,8.0097892,97.36,97.32,3.38003366]
[1770194750005,7.95620375,97.377,97.33,3.38003366]
[1770194750207,9.2517,97.401,97.35,3.38003366]
[1770194750410,7.95620375,97.4,97.35,3.38003366]
[1770194750903,7.95620375,97.4,97.36,3.38003366]
[1770194751912,7.95620375,97.4,97.37,3.38003366]
[1770194752508,7.94733198,97.414,97.37,3.38003366]
[1770194752706,7.94733198,97.414,97.38,3.38003366]
[1770194753409,7.94733198,97.414,97.344,143.9995]
[1770194753410,8.02520439,97.439,97.4,3.38003366]
[1770194753809,8.02520439,97.439,97.39,3.38003366]
[1770194755304,8.02520439,97.439,97.38,3.38003366]
[1770194756011,8.0201144,97.429,97.37,3.38003366]
[1770194756315,8.0201144,97.429,97.36,12.63553366]
[1770194756607,8.0201144,97.429,97.37,3.38003366]
[1770194757011,8.0201144,97.429,97.38,3.38003366]
[1770194757812,8.0201144,97.429,97.37,3.38003366]
[1770194759407,8.0201144,97.429,97.38,3.38003366]
[1770194760612,8.0201144,97.429,97.39,3.38003366]
[1770194760815,8.0201144,97.429,97.355,143.9836]
[1770194760816,8.0201144,97.429,97.4,3.38003366]
[1770194761310,8.04961134,97.451,97.42,3.38003366]
[1770194761706,8.04961134,97.451,97.43,3.38003366]
[1770194761911,8.04961134,97.451,97.42,3.38003366]
[1770194763912,8.04961134,97.451,97.43,3.38003366]
[1770194764113,8.03065757,97.465,97.44,3.38003366]
[1770194764509,8.03065757,97.493,97.45,3.38003366]
[1770194764908,8.03065757,97.493,97.46,3.38003366]
[1770194765507,8.03065757,97.493,97.44,3.38003366]
[1770194765709,8.03065757,97.493,97.45,3.38003366]
[1770194768620,8.03065757,97.493,97.408,143.9055]
[1770194768621,8.03065757,97.493,97.46,3.38003366]
[1770194769818,8.03065757,97.493,97.45,3.38003366]
[1770194770216,8.04132533,97.518,97.46,3.38003366]
[1770194770522,8.04132533,97.518,97.48,3.38003366]
[1770194771719,3.38003366,97.54,97.446,143.8489]
[1770194771720,8.0468834,97.549,97.49,3.38003366]
[1770194773523,8.02416858,97.537,97.49,3.38003366]
[1770194773920,8.02416858,97.529,97.47,3.38003366]
[1770194774220,8.02416858,97.509,97.45,3.38003366]
[1770194774420,3.38003366,97.5,97.44,3.38003366]
[1770194774625,8.02416858,97.489,97.43,3.38003366]
[1770194775020,8.02416858,97.489,97.44,3.38003366]
[1770194775215,8.02416858,97.489,97.45,3.38003366]
[1770194775726,8.02416858,97.489,97.46,3.38003366]
[1770194776025,8.02416858,97.489,97.45,3.38003366]
[1770194777427,8.02416858,97.489,97.46,3.38003366]
[1770194777620,7.90985767,97.512,97.46,3.38003366]
[1770194778121,7.90985767,97.512,97.425,143.8791]
[1770194778122,7.90985767,97.528,97.49,3.38003366]
[1770194778921,7.90985767,97.528,97.48,3.38003366]
[1770194779629,7.90985767,97.528,97.47,3.38003366]
[1770194779824,7.90594379,97.525,97.47,3.38003366]
[1770194780921,7.91971605,97.519,97.46,3.38003366]
[1770194781527,7.91971605,97.514,97.46,3.38003366]
[1770194782230,7.91971605,97.514,97.47,3.38003366]
[1770194782427,7.91971605,97.511,97.47,3.38003366]
[1770194783326,7.91971605,97.511,97.46,3.38003366]
[1770194783623,9.2422,97.501,97.46,3.38003366]
[1770194783826,9.2422,97.501,97.45,3.38003366]
[1770194783827,7.90285964,97.5,97.45,3.38003366]
[1770194784522,7.90285964,97.5,97.45,12.62703366]
[1770194784727,7.90285964,97.5,97.46,3.38003366]
[1770194785831,7.90285964,97.5,97.47,3.38003366]
[1770194786027,7.90285964,97.5,97.46,3.38003366]
[1770194789033,7.90285964,97.5,97.434,223.52]
[1770194789034,7.77173176,97.521,97.47,3.38003366]
[1770194789729,7.80142238,97.519,97.47,3.38003366]
[1770194790434,7.80142238,97.519,97.48,3.38003366]
[1770194792336,7.80142238,97.519,97.443,222.72]
[1770194792337,7.73392652,97.517,97.47,3.38003366]
[1770194792833,7.73392652,97.517,97.48,3.38003366]
[1770194793430,7.72044135,97.534,97.49,3.38003366]
[1770194793635,7.72044135,97.534,97.5,3.38003366]
[1770194794736,7.72044135,97.551,97.51,3.38003366]
[1770194795234,7.72044135,97.551,97.469,143.8143]
[1770194795235,7.72044135,97.551,97.489,143.7859]
[1770194795436,143.6269,97.598,97.52,3.38003366]
[1770194795437,7.73794081,97.58,97.52,3.38003366]
[1770194795633,7.73794081,97.58,97.54,3.38003366]
[1770194795830,7.73794081,97.58,97.53,3.38003366]
[1770194797238,7.7429087,97.577,97.52,3.38003366]
[1770194797436,7.7429087,97.577,97.54,3.38003366]
[1770194797833,7.7429087,97.577,97.53,3.38003366]
[1770194798229,7.7429087,97.577,97.54,3.38003366]
[1770194798839,7.7429087,97.591,97.56,3.38003366]
[1770194799142,3.38003366,97.62,97.56,3.38003366]
[1770194799143,7.7429087,97.609,97.56,3.38003366]
[1770194799833,7.7429087,97.609,97.531,220.66]
[1770194799834,7.7429087,97.609,97.57,3.38003366]
[1770194800138,7.7429087,97.609,97.56,3.38003366]
[1770194800335,7.7429087,97.609,97.57,3.38003366]
[1770194804442,7.7429087,97.609,97.56,3.36224356]
[1770194804740,143.5754,97.632,97.55,3.36224356]
[1770194804741,7.73060789,97.606,97.55,3.36224356]
[1770194807141,7.73060789,97.606,97.56,3.36224356]
[1770194809145,7.72194778,97.603,97.56,3.36224356]
[1770194809346,7.72194778,97.603,97.55,3.36224356]
[1770194809739,7.72194778,97.592,97.517,9.2406]
[1770194809943,7.72194778,97.589,97.54,3.36224356]
[1770194810441,7.72194778,97.589,97.55,3.36224356]
[1770194811147,7.72194778,97.589,97.56,3.36224356]
[1770194812347,7.72194778,97.589,97.55,3.36224356]
[1770194813049,7.72194778,97.589,97.56,3.36224356]
[1770194813743,7.72194778,97.589,97.55,3.36224356]
[1770194814146,7.72194778,97.589,97.54,3.36224356]
[1770194815748,3.36224356,97.6,97.54,3.36224356]
[1770194815749,7.72253011,97.585,97.54,3.36224356]
[1770194816054,7.72253011,97.585,97.511,199.28]
[1770194816055,7.72253011,97.602,97.55,3.36224356]
[1770194816348,7.72253011,97.602,97.56,3.36224356]
[1770194817352,7.7268085,97.616,97.58,3.36224356]
[1770194818652,7.7268085,97.659,97.6,3.36224356]
[1770194819054,7.7268085,97.649,97.59,3.36224356]
[1770194819355,7.7268085,97.649,97.565,216.08]
[1770194819556,7.7268085,97.649,97.59,3.36224356]
[1770194820157,7.7268085,97.649,97.6,3.36224356]
[1770194820752,7.7268085,97.649,97.62,3.36224356]
[1770194821158,7.7268085,97.649,97.61,9.2319]
[1770194821358,7.72351909,97.664,97.62,3.36224356]
[1770194821657,7.72351909,97.664,97.63,3.36224356]
[1770194822758,7.72351909,97.664,97.62,3.36224356]
[1770194823955,7.72351909,97.664,97.63,3.36224356]
[1770194824460,7.72351909,97.664,97.544,143.7042]
[1770194824765,7.70739622,97.659,97.6,3.36224356]
[1770194825153,7.70739622,97.659,97.61,3.36224356]
[1770194827161,10.46693264,97.674,97.62,3.36224356]
[1770194827465,10.46693264,97.674,97.64,3.36224356]
[1770194827664,10.46693264,97.674,97.63,3.36224356]
[1770194827868,7.68744628,97.673,97.62,3.36224356]
[1770194828064,7.68744628,97.659,97.6,3.36224356]
[1770194828661,7.68744628,97.659,97.61,3.36224356]
[1770194828860,7.68744628,97.659,97.6,3.36224356]
[1770194830062,7.681875,97.649,97.59,3.36224356]
[1770194830468,7.681875,97.666,97.63,3.36224356]
[1770194830761,7.681875,97.666,97.64,3.36224356]
[1770194831154,2.77948636,97.674,97.64,3.36224356]
[1770194832463,2.77948636,97.674,97.625,9.2304]
[1770194833567,7.62069695,97.673,97.625,9.2304]
[1770194834068,7.62069695,97.673,97.6,8.39269551]
[1770194835066,2.77948636,97.674,97.609,9.2319]
[1770194835067,7.62069695,97.671,97.609,9.2319]
[1770194836671,9.2263,97.67,97.609,9.2319]
[1770194836970,7.66856103,97.669,97.595,9.2333]
[1770194837167,7.66856103,97.669,97.563,213.46]
[1770194837168,7.66856103,97.665,97.56,8.39269551]
[1770194837563,143.5262,97.666,97.532,212.9]
[1770194837564,7.67109895,97.664,97.58,8.39269551]
[1770194837764,2.77948636,97.674,97.606,143.613]
[1770194837974,7.67109895,97.673,97.623,9.2306]
[1770194838475,101.58,97.672,97.623,9.2306]
[1770194839070,2.77948636,97.674,97.632,9.2298]
[1770194839571,2.77948636,97.674,97.62,8.39269551]
[1770194839769,2.77948636,97.674,97.631,9.2299]
[1770194840573,2.77948636,97.674,97.622,9.2307]
[1770194840771,10.47990522,97.674,97.622,9.2307]
[1770194841276,7.76008579,97.671,97.611,9.2318]
[1770194841472,7.76008579,97.669,97.611,9.2318]
[1770194842471,7.76008579,97.667,97.611,9.2318]
[1770194842974,7.76008579,97.644,97.57,8.39269551]
[1770194843169,143.5546,97.647,97.538,143.7124]
[1770194843170,7.76008579,97.637,97.55,8.39269551]
[1770194843664,7.75933676,97.615,97.533,143.7207]
[1770194843871,7.75933676,97.615,97.534,143.7183]
[1770194844075,7.75933676,97.613,97.552,9.2373]
[1770194844972,7.75933676,97.606,97.53,8.39269551]
[1770194845172,7.75933676,97.604,97.53,8.39269551]
[1770194846271,9.2341,97.588,97.533,9.2391]
[1770194846473,9.2341,97.588,97.53,8.39269551]
[1770194846676,7.78748944,97.602,97.53,8.39269551]
[1770194846874,9.2339,97.589,97.531,9.2393]
[1770194847177,7.78748944,97.602,97.531,9.2393]
[1770194847875,9.234,97.588,97.531,9.2393]
[1770194848270,7.7888886,97.593,97.52,8.39269551]
[1770194849677,9.2356,97.571,97.52,8.39269551]
[1770194849975,104.32,97.57,97.52,8.39269551]
[1770194850368,9.2359,97.568,97.52,8.39269551]
[1770194850672,143.628,97.597,97.52,8.39269551]
[1770194850673,143.5781,97.631,97.52,8.39269551]
[1770194850882,9.2288,97.643,97.564,143.6745]
[1770194851074,9.2288,97.643,97.58,8.39269551]
[1770194851267,7.76840351,97.646,97.58,8.39269551]
[1770194851471,7.76840351,97.646,97.55,143.6948]
[1770194851472,7.76840351,97.644,97.56,8.39269551]
[1770194852678,9.2304,97.626,97.577,9.235]
[1770194853573,9.2313,97.616,97.566,9.236]
[1770194853778,106.28,97.615,97.566,9.236]
[1770194854168,106.28,97.615,97.574,9.2353]
[1770194854568,9.2296,97.635,97.56,8.39269551]
[1770194854767,9.2296,97.635,97.582,9.2345]
[1770194854768,106.44,97.634,97.582,9.2345]
[1770194855369,7.61545969,97.633,97.573,9.2353]
[1770194855579,7.61545969,97.633,97.56,8.39269551]
[1770194856282,7.61545969,97.621,97.54,8.39269551]
[1770194856779,7.61545969,97.616,97.548,9.2377]
[1770194857479,7.70602393,97.61,97.539,9.2386]
[1770194858175,7.70602393,97.606,97.529,9.2395]
[1770194859377,7.73044672,97.604,97.529,9.2395]
[1770194859673,7.73044672,97.598,97.529,9.2395]
[1770194859872,7.73044672,97.598,97.52,8.39269551]
[1770194860378,7.73044672,97.587,97.52,8.39269551]
[1770194861176,7.78450003,97.584,97.507,9.2416]
[1770194862482,7.78450003,97.574,97.507,9.2416]
[1770194863272,106.88,97.573,97.507,9.2416]
[1770194864485,106.88,97.573,97.51,8.41100163]
[1770194865179,106.88,97.573,97.518,9.2406]
[1770194865679,7.7532501,97.591,97.518,9.2406]
[1770194865881,9.2342,97.586,97.525,9.2398]
[1770194866384,107.58,97.59,97.525,9.2398]
[1770194866584,7.7532501,97.589,97.525,9.2398]
[1770194867283,9.2351,97.577,97.517,9.2406]
[1770194870187,9.2351,97.577,97.51,8.41100163]
[1770194870188,7.7532501,97.589,97.524,9.24]
[1770194872288,7.7309977,97.585,97.524,9.24]
[1770194872587,7.7309977,97.585,97.484,143.7922]
[1770194872588,7.7309977,97.582,97.462,143.825]
[1770194872784,7.7309977,97.576,97.464,143.8221]
[1770194873583,143.6566,97.577,97.492,9.243]
[1770194873584,7.82424676,97.557,97.492,9.243]
[1770194873791,7.82424676,97.555,97.492,9.243]
[1770194875097,7.82424676,97.555,97.481,143.7975]
[1770194875284,7.82424676,97.555,97.472,143.8107]
[1770194875484,7.82424676,97.555,97.476,143.8043]
[1770194876091,7.92183593,97.553,97.482,143.7949]
[1770194877293,110.14,97.552,97.5,9.2423]
[1770194878194,7.90809329,97.551,97.492,9.243]
[1770194878596,7.90809329,97.551,97.48,8.41100163]
[1770194878796,7.90809329,97.551,97.482,9.244]
[1770194878999,7.90809329,97.547,97.482,9.244]
[1770194879799,7.89654208,97.531,97.471,9.245]
[1770194880200,7.89654208,97.531,97.46,8.41100163]
[1770194880395,7.89654208,97.531,97.41,10.26]
[1770194880396,7.89654208,97.515,97.42,8.41100163]
[1770194880589,7.89654208,97.513,97.42,8.41100163]
[1770194880899,7.89654208,97.493,97.425,9.2494]
[1770194881700,7.89654208,97.493,97.434,9.2485]
[1770194881894,111.38,97.495,97.426,143.8784]
[1770194882093,111.38,97.495,97.44,8.41100163]
[1770194882293,7.88501676,97.509,97.444,143.8519]
[1770194882591,111.44,97.515,97.444,143.8519]
[1770194882792,143.6832,97.559,97.44,8.41100163]
[1770194882793,111.58,97.516,97.464,9.2457]
[1770194885301,120.26479937,97.522,97.464,9.2457]
[1770194885599,7.92479937,97.521,97.464,9.2457]
[1770194886599,9.2391,97.534,97.476,9.2445]
[1770194886800,7.92479937,97.541,97.48,8.41100163]
[1770194887593,7.92479937,97.541,97.464,143.822]
[1770194888301,7.92479937,97.541,97.486,9.2435]
[1770194888702,7.92479937,97.541,97.46,8.41100163]
[1770194888999,7.92479937,97.541,97.44,8.41100163]
[1770194889498,9.2389,97.537,97.466,9.2454]
[1770194889703,7.9165858,97.536,97.466,9.2454]
[1770194890701,7.9165858,97.533,97.466,9.2454]
[1770194891002,7.9165858,97.533,97.44,8.41100163]
[1770194891203,7.9165858,97.531,97.44,8.41100163]
[1770194891698,7.9165858,97.531,97.462,143.8252]
[1770194892003,7.9165858,97.531,97.442,143.855]
[1770194892004,113.5,97.53,97.464,143.8227]
[1770194892201,7.9165858,97.531,97.492,9.243]
[1770194892498,7.92313912,97.547,97.492,9.243]
[1770194893106,7.92313912,97.547,97.48,8.41100163]
[1770194893405,7.93332784,97.545,97.48,8.41100163]
[1770194893600,7.93332784,97.545,97.493,9.2429]
[1770194894298,7.93332784,97.545,97.48,8.41100163]
[1770194894604,7.93332784,97.545,97.46,8.41100163]
[1770194895704,7.93938711,97.524,97.46,8.41100163]
[1770194896401,9.2402,97.522,97.46,8.41100163]
[1770194896607,9.2402,97.522,97.462,9.2458]
[1770194896903,7.93938711,97.524,97.46,8.41100163]
[1770194897396,143.689,97.555,97.46,8.41100163]
[1770194897397,115.16,97.537,97.46,8.41100163]
[1770194897602,123.03514074,97.54,97.48,8.41100163]
[1770194898006,7.91514074,97.539,97.48,8.41100163]
[1770194898403,7.91514074,97.565,97.492,9.243]
[1770194898602,7.91514074,97.563,97.492,9.243]
[1770194899008,9.2387,97.539,97.484,9.2438]
[1770194899404,7.91514074,97.543,97.48,8.41100163]
[1770194899608,9.2384,97.542,97.495,9.2427]
[1770194900312,7.91514074,97.543,97.495,9.2427]
[1770194901909,7.88801389,97.54,97.486,9.2436]
[1770194906217,7.88801389,97.54,97.48,152.21010163]
[1770194907011,7.89955565,97.556,97.48,8.41100163]
[1770194907210,7.89955565,97.556,97.485,143.7919]
[1770194907815,7.89955565,97.556,97.502,9.2421]
[1770194908014,7.89955565,97.556,97.48,8.41100163]
[1770194908620,7.89955565,97.556,97.502,9.2421]
[1770194908922,7.89955565,97.556,97.48,8.41100163]
[1770194909420,7.91907997,97.554,97.48,8.41100163]
[1770194910523,7.91907997,97.55,97.494,9.2428]
[1770194910826,7.91907997,97.548,97.46,8.41100163]
[1770194911016,7.91907997,97.546,97.46,8.41100163]
[1770194911418,116.96,97.547,97.46,8.41100163]
[1770194911419,7.92820768,97.544,97.46,8.41100163]
[1770194912824,7.92820768,97.529,97.472,9.2449]
[1770194913822,7.92660345,97.522,97.472,9.2449]
[1770194914028,7.92660345,97.522,97.448,210.32]
[1770194914425,7.92660345,97.519,97.467,9.2454]
[1770194916829,7.92660345,97.519,97.474,9.2447]
[1770194919429,7.92660345,97.519,97.466,9.2454]
[1770194920533,8.02142913,97.515,97.44,8.41100163]
[1770194921024,8.02142913,97.514,97.44,8.41100163]
[1770194921330,9.2423,97.5,97.449,9.2471]
[1770194921531,8.00010581,97.499,97.449,9.2471]
[1770194922232,9.2426,97.498,97.449,9.2471]
[1770194922932,9.2432,97.491,97.449,9.2471]
[1770194923931,9.2425,97.498,97.449,9.2471]
[1770194925035,9.2425,97.498,97.456,9.2464]
[1770194925337,8.02371646,97.516,97.444,143.8525]
[1770194925534,8.02371646,97.516,97.46,8.41100163]
[1770194926335,8.02371646,97.516,97.48,3.3677067]
[1770194926741,9.2411,97.513,97.48,3.3677067]
[1770194928439,8.01642424,97.513,97.48,3.3677067]
[1770194928743,9.2402,97.522,97.49,3.3677067]
[1770194929040,9.24,97.525,97.49,3.3677067]
[1770194930144,8.01642424,97.526,97.49,3.3677067]
[1770194930844,8.01642424,97.526,97.5,3.3677067]
[1770194932344,8.01642424,97.526,97.49,3.3677067]
[1770194933838,8.01642424,97.526,97.49,12.6109067]
[1770194934943,8.01642424,97.526,97.497,9.2426]
[1770194935345,8.01642424,97.526,97.5,3.3677067]